Workbook

Sheet Start
B6: Description:
B7: Please ensure to activate the Macro functionally, otherwise the calculation will not work correctly. Please activate to continue
B8: The "Quick calculation" is used to get a rough overview about the power consumption based on the given standby time values and selected products.

Sheet Wizard
J3: SPC Calculation tool
G5: Version 3.0 | W5: please select
W6: Germany
D7: General | L7: Detectors | W7: Austria | XFB7: Detectors
B8: For information on how to use the tool please view our “How to Video” or take part in our “online e-learning session | V8: D frequency | W8: Czech
V9: A frequency | W9: Estonia
C10: How many inputs do you require? | H10: 20 | J10: Required magnetic contacts? (built in)? | L10: 0 | M10: Required 12M PIR? | P10: 0 | V10: E Frequncy | W10: Liechtenstein
W11: Luxembourg
C12: How many outputs do you require? | H12: 0 | J12: Required magnetic contacts? | L12: 0 | M12: Required 12M PIR Dual? | P12: 0 | W12: Slovakia
W13: Switzerland
C14: How many keypads do you require? | H14: 1 | J14: Required flood detectors? | L14: 0 | M14: Required 18M PIR ? | P14: 0 | W14: Turkey
W15: Belgium
C16: How many doors do you require? | H16: 0 | J16: Requirement of seismic sensors? | L16: 0 | M16: Required 18M PIR with Dual? | P16: 0 | W16: Bulgaria
W17: Cyprus
C18: How many users do you require? | H18: 40 | J18: Required acoustic glass break detectors? | L18: 0 | M18: Select region options for detectors for dual | W18: Denmark
W19: Finland
C20: How many cards do you require? | H20: 0 | J20: Required passive glass break detectors? | L20: 0 | W20: Greece
W21: Iceland
C22: How many areas do you require? | H22: 1 | J22: Required Vibration sensors? | L22: 0 | M22: Door Contacts | W22: Italy
J23: Required indoor sirens? | L23: 0 | M23: Required Door magnetic contacts? (built in)? | P23: 0 | W23: Latvia
C24: Alarm cable distance | H24: 0 | I24: m | J24: Required outdoor sirens? | L24: 0 | M24: Required Door magnetic contacts? | P24: 0 | W24: Lithuania
W25: Malta
W26: Netherland
W27: Norway
W28: Poland
B29: Project name | E29: - | I29: (OPTIONAL) | W29: Portugal
W30: Romania
B31: Calculation date | E31: - | I31: (OPTIONAL) | W31: Slovenia
W32: Spain
B33: Standby time in hours related to required security grade | E33: 16 | F33: h | G33: E.G. Vds C "60", EN Grade 2 "32" , EN Grade 3 "60", ...) | W33: Sweden
W34: Bosnia & Herzegovina
W35: Georgia
B36: Min. required rest capacity in % of the backup battery (if applicable) | E36: 0.01 | F36: % | G36: E.G. Vds "20%", EN Grade 2 "XX%" , EN Grade 3 "XX%", ...) | W36: Croatia
W37: Macedonia
W38: Montenegro
B39: Additional alarm current, if main fails and panel runs on battery. Note:This is in addition to any devices added on power calculation page (if applicable) | E39: 0 | F39: Ah | G39: E.G. Vds "0,5Ah", EN Grade 2 "XXAh" , EN Grade 3 "XXAh", ...) | W39: Russia
W40: Serbia
W41: Ukraine
W42: France
W43: Hungary
B44: Description: | W44: Ireland
B45: Please ensure to activate the Macro functionally, otherwise the calculation will not work correctly. | W45: UK
B46: The "SPC Calculator" is used to get a rough overview about the power consumption based on the given standby time values and selected products.
B49: Comments
B50: Attention: this calculation does not consider the voltage drop in the field installation. In real installation environments, especially with long distance cabling, additional power supply's might be needed.
B53: Power consumption: As soon as the power consumption of the field installation exceeds the available power of the control panel or PSU, the cell indication will become red.
B62: Feedback
B63: If you have any comments on this tool or wish to request an improvement please click here
B65: If you require support, training or information please contact Vanderbilt here
B68: =TODAY() -> 2018-09-06
B70: Release Notes
B71: ==========================================================================
B72: (C) 2017 Vanderbilt All Rights Reserved
B73: ==========================================================================
B74: Released: V2.0 27/04/2018
B75: ==========================================================================
D90: 0 | E90: 0 | F90: 0 | I90: 1 | K90: 1 | M90: 0 | N90: 1 | W90: 0 | X90: 1

Sheet Power calculation
B1: Remark:
B2: Please enter the quantity and the power consumption(mA) of the products in the blue marked fields.
D6: Power Consumption mA | J6: Power Consumption mA
B7: Product group | C7: SPC Product | D7: Min./pcs. | E7: Max./pcs. | F7: Average/pcs. | G7: available AUX mA/pcs. | H7: battery space | I7: Quantity | J7: Min./overall | K7: Max./overall | L7: Average/overall | M7: Available current mA | N7: Available battery capacity | O7: Notes | P7: Your price | Q7: Part code
B9: Panel | C9: SPC4221 7Ah/xxh no IP/G2 cabinet with plastic lid | D9: 170 | E9: 200 | F9: =AVERAGE(D9,E9) -> 185 | G9: =750 -> 750 | H9: 7 | I9: 0 | J9: =D9*I9 -> 0 | K9: =E9*I9 -> 0 | L9: =AVERAGE(J9,K9) -> 0 | M9: =G9*I9 -> 0 | N9: =I9*H9 -> 0 | Q9: V54541-C113-A100
C10: SPC4320 7Ah/xxh IP/G2 cabinet with plastic lid | D10: 170 | E10: 200 | F10: =AVERAGE(D10,E10) -> 185 | G10: =750 -> 750 | H10: 7 | I10: 0 | J10: =D10*I10 -> 0 | K10: =E10*I10 -> 0 | L10: =AVERAGE(J10,K10) -> 0 | M10: =G10*I10 -> 0 | N10: =I10*H10 -> 0 | Q10: V54541-C114-A100
C11: SPC4320 7Ah/xxh IP/G2 metal cabinet | D11: 170 | E11: 200 | F11: =AVERAGE(D11,E11) -> 185 | G11: =750 -> 750 | H11: 7 | I11: 0 | J11: 0 | K11: 0 | L11: 0 | M11: 0 | N11: 0 | Q11: V54541-C109-B100
C12: SPC5320 7Ah/xxh IP/G2 metal cabinet | D12: 170 | E12: 200 | F12: 185 | G12: =750 -> 750 | H12: 7 | I12: 0 | J12: 0 | K12: 0 | L12: 0 | M12: 0 | N12: 0 | Q12: V54541-C106-B100
C13: SPC5330 17Ah/xxh IP/G3 metal cabinet | D13: 170 | E13: 200 | F13: 185 | G13: =750 -> 750 | H13: 17 | I13: 0 | J13: 0 | K13: 0 | L13: 0 | M13: 0 | N13: 0 | Q13: V54541-C107-B100
C14: SPC6330 17Ah/xxh IP/G3 metal cabinet | D14: 170 | E14: 200 | F14: 185 | G14: =750 -> 750 | H14: 17 | I14: 0 | J14: 0 | K14: 0 | L14: 0 | M14: 0 | N14: 0 | Q14: V54541-C105-C100
C15: SPC5350 1x26Ah/xxh IP/G5 metal cabinet | D15: 350 | E15: 415 | F15: 382.5 | G15: =2200 -> 2200 | H15: 26 | I15: 0 | J15: 0 | K15: 0 | L15: 0 | M15: =G15*I15 -> 0 | N15: 0 | Q15: V54541-C117-A100
C16: SPC5350 2x26Ah/xxh IP/G5 metal cabinet | D16: 350 | E16: 415 | F16: 382.5 | G16: =2200 -> 2200 | H16: 52 | I16: 0 | J16: 0 | K16: 0 | L16: 0 | M16: =G16*I16 -> 0 | N16: 0 | Q16: V54541-C117-A100
C17: SPC6350 1x26Ah/xxh IP/G5 metal cabinet | D17: 350 | E17: 415 | F17: 382.5 | G17: =2200 -> 2200 | H17: 26 | I17: 0 | J17: 0 | K17: 0 | L17: 0 | M17: =G17*I17 -> 0 | N17: 0 | Q17: V54541-C118-A100
C18: SPC6350 2x26Ah/xxh IP/G5 metal cabinet | D18: 350 | E18: 415 | F18: 382.5 | G18: =2200 -> 2200 | H18: 52 | I18: 0 | J18: 0 | K18: 0 | L18: 0 | M18: =G18*I18 -> 0 | N18: 0 | Q18: V54541-C118-A100
I19: 0
B20: SiWay module | C20: SPCW110 SiWay RF Kit w. ext. Antenna | D20: 10 | E20: 10 | F20: 10 | I20: 0 | J20: =D20*I20 -> 0 | K20: =E20*I20 -> 0 | L20: =AVERAGE(J20,K20) -> 0 | Q20: V54554-B101-A100
C21: SPCW111 SiWay RF Kit w. int. Antenna | D21: 10 | E21: 10 | F21: 10 | I21: 0 | J21: =D21*I21 -> 0 | K21: =E21*I21 -> 0 | L21: =AVERAGE(J21,K21) -> 0 | Q21: V54554-B105-A100
C22: SPCW112 SiWay RF Kit for SPCK42x | D22: 10 | E22: 10 | F22: 10 | I22: 0 | J22: 0 | K22: 0 | L22: 0 | Q22: V54554-B103-B100
C23: SPCW114 SiWay RF Kit for SPCK52x | D23: 10 | E23: 10 | F23: 10 | I23: 0 | J23: 0 | K23: 0 | L23: 0 | Q23: V54554-B104-A100
C24: SPCW130 SiWay RF Expander | D24: 60 | E24: 60 | F24: 60 | I24: 0 | J24: 0 | K24: 0 | L24: 0 | Q24: V54554-F101-B100
I25: 0
B26: Communication module | C26: SPCN110 PSTN module | D26: 25 | E26: 35 | F26: 30 | I26: 0 | J26: 0 | K26: 0 | L26: 0 | Q26: V54550-B101-A100
C27: SPCN320.000 GSM Module incl. antenna | D27: 130 | E27: 130 | F27: 130 | I27: 0 | J27: 0 | K27: 0 | L27: 0 | Q27: V54550-B102-A200
C28: SPCN910 communication interface module | D28: 40 | E28: 44 | F28: 42 | I28: 0 | J28: 0 | K28: 0 | L28: 0 | Q28: V54550-B104-A100
I29: 0
B30: User operation module | C30: SPCK420 LCD Keypad | D30: 45 | E30: 90 | F30: =AVERAGE(D30,E30) -> 67.5 | I30: 0 | J30: 0 | K30: 0 | L30: 0 | Q30: V54543-F101-A100
C31: SPCK421 LCD Keypad with Reader | D31: 80 | E31: 110 | F31: =AVERAGE(D31,E31) -> 95 | I31: 0 | J31: 0 | K31: =E31*I31 -> 0 | L31: 0 | Q31: V54543-F102-A100
C32: SPCK520 LCD Compact keypad | D32: 55 | E32: 210 | F32: =AVERAGE(D32,E32) -> 132.5 | I32: 0 | J32: 0 | K32: =E32*I32 -> 0 | L32: 0 | Q32: V54543-F115-A100
C33: SPCK521 LCD Compact keypad with Mifare/125KHz reader and Audio | D33: 95 | E33: 210 | F33: 152.5 | I33: 0 | J33: 0 | K33: 0 | L33: 0 | Q33: V54543-F116-A100
C34: SPCK620 Comfort Keypad | D34: 55 | E34: 155 | F34: =AVERAGE(D34,E34) -> 105 | I34: 0 | J34: 0 | K34: 0 | L34: 0 | Q34: V54543-F110-A100
C35: SPCK623 Comfort Keypad (Audio/Card) | D35: 110 | E35: 230 | F35: =AVERAGE(D35,E35) -> 170 | I35: 0 | J35: 0 | K35: 0 | L35: 0 | Q35: V54543-F111-A100
I36: 0
B37: Expander module | C37: SPCE652 Expander (8 Inputs / 2 Outputs) | D37: 40 | E37: 80 | F37: =AVERAGE(D37,E37) -> 60 | I37: 0 | J37: 0 | K37: 0 | L37: 0 | O37: all relays activated | Q37: V54542-F106-A100
C38: SPCE452 Expander (8 Outputs ) | D38: 40 | E38: 190 | F38: 115 | I38: 0 | J38: 0 | K38: 0 | L38: 0 | O38: all relays activated | Q38: V54542-F107-A100
C39: SPCA210 2-Door Expander | D39: 45 | E39: 80 | F39: 62.5 | I39: 0 | J39: 0 | K39: 0 | L39: 0 | Q39: V54547-A101-A100
C40: SPCE120 Indication Expander | D40: 30 | E40: 70 | F40: 50 | I40: 0 | J40: 0 | K40: 0 | L40: 0 | Q40: V54542-F105-A100
C41: SPCE110 Key switch Expander | D41: 30 | E41: 50 | F41: 40 | I41: 0 | J41: 0 | K41: 0 | L41: 0 | Q41: V54542-F104-A100
C42: SPCV310 Audio station (loudspeaker & Microphone) with housing | D42: 1 | E42: 7 | F42: 4 | I42: 0 | J42: 0 | K42: 0 | L42: 0 | Q42: V54542-F120-A100
C43: SPCV320 Audio I/O Expander w. 4 inputs/ 1 open collector output | D43: 40 | E43: 510 | F43: 275 | I43: 0 | J43: 0 | K43: 0 | L43: 0 | O43: without additional audio expanders
C44: SPCV321 Audio Input Expander w. 4 inputs / 1 line out | D44: 40 | E44: 510 | F44: 275 | I44: 0 | J44: 0 | K44: 0 | L44: 0 | O44: without additional audio expanders
C45: SPCV340 Audio I/O Expander w. 4 inputs / 1 open collector output | D45: 60 | E45: 75 | F45: 67.5 | I45: 0 | J45: 0 | K45: 0 | L45: 0 | O45: without additional audio expanders | Q45: V54542-F108-B100
C46: SPCV341 Audio Input Expander w. 4 inputs / 1 line out | D46: 60 | E46: 75 | F46: 67.5 | I46: 0 | J46: 0 | K46: 0 | L46: 0 | O46: without additional audio expanders | Q46: V54542-F109-B100
C47: SPCV410 Audio Expander w. 1 input (slave module) | D47: 1 | E47: 7 | F47: 4 | I47: 0 | J47: 0 | K47: 0 | L47: 0 | O47: without additional audio expanders and motion detector / 1 input is reserved for a 12m MAGIC Motion Detector | Q47: V54542-F119-A100
C48: SPCV440 Audio Expander w. 4 inputs/ 1 open collector output | D48: 60 | E48: 75 | F48: 67.5 | I48: 0 | J48: 0 | K48: 0 | L48: 0 | O48: without additional audio expanders and motion detector | Q48: V54542-F118-A100
I49: 0
B50: PSU | C50: SPCP332 PSU w. I/O Exp. SPCE652 - G2 - 7Ah | D50: 77 | E50: 117 | F50: =AVERAGE(D50,E50) -> 97 | G50: =1500 -> 1500 | H50: 7 | I50: 0 | J50: 0 | K50: 0 | L50: 0 | M50: =G50*I50 -> 0 | N50: =I50*H50 -> 0 | Q50: V54545-C102-A100
C51: SPCP333 PSU w. I/O Exp. SPCE652 - G3 - 17Ah | D51: 77 | E51: 117 | F51: 97 | G51: =1500 -> 1500 | H51: 17 | I51: 0 | J51: 0 | K51: 0 | L51: 0 | M51: =G51*I51 -> 0 | N51: =I51*H51 -> 0 | Q51: V54545-C101-A100
C52: SPCP355 PSU w. I/O Exp. SPCE652 - G5 - 1x26Ah | D52: 195 | E52: 245 | F52: 220 | G52: =2360 -> 2360 | H52: 26 | I52: 0 | J52: 0 | K52: 0 | L52: 0 | M52: 0 | N52: 0 | Q52: V54545-C105-A100
C53: SPCP355 PSU w. I/O Exp. SPCE652 - G5 - 2x26Ah | D53: 195 | E53: 245 | F53: 220 | G53: =2360 -> 2360 | H53: 52 | I53: 0 | J53: 0 | K53: 0 | L53: 0 | M53: 0 | N53: 0 | Q53: V54545-C105-A100
C54: SPCP432 PSU w. door Exp. SPCA210 - G2 - 7Ah | D54: 82 | E54: 124 | F54: 103 | G54: =1500 -> 1500 | H54: 7 | I54: 0 | J54: 0 | K54: 0 | L54: 0 | M54: 0 | N54: 0 | Q54: V54545-C103-A100
C55: SPCP433 PSU w. door Exp. SPCA210 - G3 - 17Ah | D55: 82 | E55: 124 | F55: 103 | G55: =1500 -> 1500 | H55: 17 | I55: 0 | J55: 0 | K55: 0 | L55: 0 | M55: 0 | N55: 0 | Q55: V54545-C104-A100
I56: 0
B57: E-BUS Gateway + Expander + Keypads + Detectors | C57: SPCG310 E-BUS Gateway for SPC | D57: 40 | E57: 40 | F57: =AVERAGE(D57,E57) -> 40 | I57: 0 | J57: =D57*I57 -> 0 | K57: =E57*I57 -> 0 | L57: =AVERAGE(J57,K57) -> 0 | Q57: V54554-A101-A100
C58: SAT12/SMT12 | D58: 7 | E58: 15 | F58: 11 | I58: 0 | J58: 0 | K58: 0 | L58: 0
C59: SMT22 | D59: 4 | E59: 20 | F59: 12 | I59: 0 | J59: 0 | K59: 0 | L59: 0
C60: SAT24/SMT24 | D60: 4 | E60: 25 | F60: 14.5 | I60: 0 | J60: 0 | K60: 0 | L60: 0
C61: SMT44 | D61: 42 | E61: 66 | F61: 54 | I61: 0 | J61: 0 | K61: 0 | L61: 0
C62: SAK41 | D62: 13 | E62: 73 | F62: 43 | I62: 0 | J62: 0 | K62: 0 | L62: 0
C63: SAK51 | D63: 13 | E63: 73 | F63: 43 | I63: 0 | J63: 0 | K63: 0 | L63: 0
C64: PDM-E-I12 | D64: 3.7 | E64: 5.7 | F64: 4.7 | I64: 0 | J64: 0 | K64: 0 | L64: 0 | Q64: V54530-F115-A100
C65: PDM-E-I18T | D65: 4.2 | E65: 6.2 | F65: 5.2 | I65: 0 | J65: 0 | K65: 0 | L65: 0 | Q65: V54530-F116-A100
C66: PDM-E-IXD12 | D66: 4.5 | E66: 6.5 | F66: 5.5 | I66: 0 | J66: 0 | K66: 0 | L66: 0 | Q66: V54531-F130-A100
C67: PDM-E-IXD18T | D67: 5.1 | E67: 7.1 | F67: 6.1 | I67: 0 | J67: 0 | K67: 0 | L67: 0 | Q67: V54531-F131-A100
C68: UP370MD E-BUS | D68: 20 | E68: 52 | F68: 36 | I68: 0 | J68: 0 | K68: 0 | L68: 0 | Q68: VBPZ: 5198210001
C69: UP370T E-BUS | D69: 22 | E69: 54 | F69: 38 | I69: 0 | J69: 0 | K69: 0 | L69: 0 | Q69: VBPZ: 5199990001
C70: DIVERS | I70: 0 | J70: 0 | K70: 0 | L70: 0
I71: 0
B72: MAGIC PIR Detectors | C72: PDM-I12 Passiv Infrared Detector 12m detection range | D72: 2.5 | E72: 4.7 | F72: =AVERAGE(D72,E72) -> 3.6 | I72: 0 | J72: =D72*I72 -> 0 | K72: =E72*I72 -> 0 | L72: =AVERAGE(J72,K72) -> 0 | Q72: V54530-F114-A100
C73: PDM-I12T Passiv Infrared Detector 12m detection range with Antimask | D73: 6.3 | E73: 10.5 | F73: 8.4 | I73: 0 | J73: 0 | K73: 0 | L73: 0 | Q73: V54530-F105-A100
C74: PDM-I18 Passiv Infrared Detector 18m detection range | D74: 2.5 | E74: 4.7 | F74: 3.6 | I74: 0 | J74: 0 | K74: 0 | L74: 0 | Q74: V54530-F106-A100
C75: PDM-I18T Passiv Infrared Detector 18m detection range with Antimask | D75: 6.3 | E75: 10.5 | F75: 8.4 | I75: 0 | J75: 0 | K75: 0 | L75: 0 | Q75: V54530-F107-A100
I76: 0
B77: MAGIC Dual Detectors | C77: PDM-IXD12 Dual Detector (PIR/MW) 12m detection range | D77: 4.8 | E77: 9 | F77: =AVERAGE(D77,E77) -> 6.9 | I77: 0 | J77: =D77*I77 -> 0 | K77: =E77*I77 -> 0 | L77: =AVERAGE(J77,K77) -> 0 | Q77: V54531-F124-A100
C78: PDM-IXD12T Dual Detector (PIR/MW) 12m detection range with Antimask | D78: 6.3 | E78: 10.5 | F78: 8.4 | I78: 0 | J78: 0 | K78: 0 | L78: 0 | Q78: V54531-F115-A100
C79: PDM-IXD18 Dual Detector (PIR/MW) 18m detection range | D79: 4.8 | E79: 9 | F79: 6.9 | I79: 0 | J79: 0 | K79: 0 | L79: 0 | Q79: V54531-F118-A100
C80: PDM-IXD18T Dual Detector (PIR/MW) 18m detection range with Antimask | D80: 6.3 | E80: 10.5 | F80: 8.4 | I80: 0 | J80: 0 | K80: 0 | L80: 0 | Q80: V54531-F121-A100
C81: PDM-IXA12 Dual Detector (PIR/MW) 12m detection range | D81: 4.8 | E81: 9 | F81: 6.9 | I81: 0 | J81: 0 | K81: 0 | L81: 0 | Q81: V54531-F113-A100
C82: PDM-IXA12T Dual Detector (PIR/MW) 12m detection range with Antimask | D82: 6.3 | E82: 10.5 | F82: 8.4 | I82: 0 | J82: 0 | K82: 0 | L82: 0 | Q82: V54531-F116-A100
C83: PDM-IXA18 Dual Detector (PIR/MW) 18m detection range | D83: 4.8 | E83: 9 | F83: 6.9 | I83: 0 | J83: 0 | K83: 0 | L83: 0 | Q83: V54531-F119-A100
C84: PDM-IXA18T Dual Detector (PIR/MW) 18m detection range with Antimask | D84: 6.3 | E84: 10.5 | F84: 8.4 | I84: 0 | J84: 0 | K84: 0 | L84: 0 | Q84: V54531-F122-A100
C85: PDM-IXE12 Dual Detector (PIR/MW) 12m detection range | D85: 4.8 | E85: 9 | F85: 6.9 | I85: 0 | J85: 0 | K85: 0 | L85: 0 | Q85: V54531-F114-A100
C86: PDM-IXE12T Dual Detector (PIR/MW) 12m detection range with Antimask | D86: 6.3 | E86: 10.5 | F86: 8.4 | I86: 0 | J86: 0 | K86: 0 | L86: 0 | Q86: V54531-F117-A100
C87: PDM-IXE18 Dual Detector (PIR/MW) 18m detection range | D87: 4.8 | E87: 9 | F87: 6.9 | I87: 0 | J87: 0 | K87: 0 | L87: 0 | Q87: V54531-F120-A100
C88: PDM-IXE18T Dual Detector (PIR/MW) 18m detection range with Antimask | D88: 6.3 | E88: 10.5 | F88: 8.4 | I88: 0 | J88: 0 | K88: 0 | L88: 0 | Q88: V54531-F123-A100
C89: UP370MD Dual Detector (PIR/US) 10m detection range with Alarm storage | D89: 16 | E89: 32 | F89: 24 | I89: 0 | J89: 0 | K89: 0 | L89: 0
C90: UP370T Dual Detector (PIR/US) 10m detection range with Antimask | D90: 18 | E90: 34 | F90: 26 | I90: 0 | J90: 0 | K90: 0 | L90: 0
I91: 0
B92: Card readers without keypad | C92: HD500-Cotag (card reader without keypad) | D92: 37 | E92: 37 | F92: =AVERAGE(D92,E92) -> 37 | I92: 0 | J92: =D92*I92 -> 0 | K92: =E92*I92 -> 0 | L92: =AVERAGE(J92,K92) -> 0 | Q92: V24246-F4703-A1
C93: HD500-EM (card reader without keypad) | D93: 20 | E93: 20 | F93: 20 | I93: 0 | J93: 0 | K93: 0 | L93: 0
C94: HMD TKSV-SES-S / CDA2 | D94: 65 | E94: 120 | F94: 80 | I94: 0 | J94: 0 | K94: 0 | L94: 0 | Q94: N54547-Z101-A500
C95: HMD TKWA AES / CDA2 | D95: 65 | E95: 120 | F95: 80 | I95: 0 | J95: 0 | K95: 0 | L95: 0 | Q95: N54547-Z101-A400
C96: HMD LWA-AES / CDA2 | D96: 65 | E96: 120 | F96: 80 | I96: 0 | J96: 0 | K96: 0 | L96: 0 | Q96: N54547-Z101-A300
C97: VR10S-MF (Mifare card reader) | D97: 43 | E97: 158 | F97: 65 | I97: 0 | J97: 0 | K97: 0 | L97: 0 | Q97: V54504-F101-A100
C98: VR20M-MF Mifare card readerstandard | D98: 50 | E98: 150 | F98: 70 | I98: 0 | J98: 0 | K98: 0 | L98: 0 | Q98: V54504-F111-A100
C99: N54547-B105-A100 VR reader interface | D99: 5 | E99: 5 | F99: 5 | I99: 0 | J99: 0 | K99: 0 | L99: 0 | Q99: N54547-B105-A100
I100: 0
B101: Card readers with keypad | C101: VR50M-MF Mifare card reader standard with keypad | D101: 50 | E101: 150 | F101: 70 | I101: 0 | J101: =D101*I101 -> 0 | K101: =E101*I101 -> 0 | L101: =AVERAGE(J101,K101) -> 0 | Q101: V54504-F112-A100
C102: AR6182-MX (card reader with keypad) | D102: 145 | E102: 145 | F102: =AVERAGE(D102,E102) -> 145 | I102: 0 | J102: 0 | K102: 0 | L102: 0
C103: PP500-EM (card reader with keypad) | D103: 30 | E103: 30 | F103: 30 | I103: 0 | J103: 0 | K103: 0 | L103: 0 | Q103: V54501-F1-A1
C104: HFS-TKWA-AES/CDA2 (card reader with keypad- color silver) | D104: 6 | E104: 22 | F104: 14 | I104: 0 | J104: 0 | K104: 0 | L104: 0
C105: HFS-TKWA-APW/CDA2 (card reader with keypad- color white) | D105: 6 | E105: 22 | F105: 14 | I105: 0 | J105: 0 | K105: 0 | L105: 0
C106: HFS-KLS-SMT/CDA2 (card reader with keypad) Siedle vario 611 | D106: 6 | E106: 22 | F106: 14 | I106: 0 | J106: 0 | K106: 0 | L106: 0
C107: VR40S-MF (Mifare card reader with keyboard and display) | D107: 80 | E107: 130 | F107: 110 | I107: 0 | J107: 0 | K107: 0 | L107: 0 | Q107: V54504-F102-A100
C108: N54547-B105-A100 VR reader interface | D108: 5 | E108: 5 | F108: 5 | I108: 0 | J108: 0 | K108: 0 | L108: 0
I109: 0
B110: Cards | C110: IB43-MIFARE DESFire-BL (pack of 10) ,Printable MIFARE DESFire cards | D110: 0 | E110: 0 | F110: =AVERAGE(D110,E110) -> 0 | I110: 0 | J110: =D110*I110 -> 0 | K110: =E110*I110 -> 0 | L110: =AVERAGE(J110,K110) -> 0 | Q110: V54515-Z102-A200
C111: IB47-MIFARE DESFire-HD, Heavy-duty MIFARE DESFire tags | D111: 0 | E111: 0 | F111: 0 | I111: 0 | J111: 0 | K111: 0 | L111: 0 | Q111: V54515-Z103-A100
C112: MT1-BL, Dual-Tech Card EM/DESFire 10pcs | D112: 0 | E112: 0 | F112: 0 | I112: 0 | J112: 0 | K112: 0 | L112: 0 | Q112: S54515-Z105-A100
C113: IB42-EM , Blank printable EM laminated card without print | D113: 0 | E113: 0 | F113: 0 | I113: 0 | J113: 0 | K113: 0 | L113: 0 | Q113: V24246-D4901-A1
I114: 0
B115: Acustic & optical alarming devices | C115: BES-A/O | D115: 0 | E115: 600 | F115: =AVERAGE(D115,E115) -> 300 | I115: 0 | J115: =D115*I115 -> 0 | K115: =E115*I115 -> 0 | L115: =AVERAGE(J115,K115) -> 0
C116: SG3200AK/OP | D116: 0 | E116: 550 | F116: 275 | I116: 0 | J116: 0 | K116: 0 | L116: 0
C117: ROLP-LX-x | D117: 0 | E117: 37 | F117: 18.5 | I117: 0 | J117: 0 | K117: 0 | L117: 0
C118: SIREX Outdoor siren A2P3, 110db, AL | D118: 0 | E118: 6 | F118: 3 | I118: 0 | J118: 0 | K118: 0 | L118: 0 | Q118: N54539-Z149-A100
C119: SIREXF Outdr. siren A2P3,110db,AL,flash | D119: 0 | E119: 6 | F119: 3 | I119: 0 | J119: 0 | K119: 0 | L119: 0 | Q119: N54539-Z135-A100
C120: SIRUS Outdr. siren NFA2P,type3,pc,flash | D120: 0 | E120: 5 | F120: 2.5 | I120: 0 | J120: 0 | K120: 0 | L120: 0 | Q120: N54539-Z135-A100
C121: SA100-AS Outdoor siren | D121: 0 | E121: 4 | F121: 2 | I121: 0 | J121: 0 | K121: 0 | L121: 0 | Q121: N54539-Z135-A100
C122: Piccolo SO/Piccolo/BL/G3S5 (internal) | D122: 0 | E122: 100 | F122: 4 | I122: 0 | J122: 0 | K122: 0 | L122: 0 | Q122: N54539-Z135-A100
I123: 0
B124: Acustic alarming devices | C124: BES-A | D124: 0 | E124: 300 | F124: =AVERAGE(D124,E124) -> 150 | I124: 0 | J124: =D124*I124 -> 0 | K124: =E124*I124 -> 0 | L124: =AVERAGE(J124,K124) -> 0
C125: SG3100AK | D125: 0 | E125: 350 | F125: 175 | I125: 0 | J125: 0 | K125: 0 | L125: 0
I126: 0
B127: Ext. Devices | C127: xxxx | D127: 0 | E127: 0 | F127: =AVERAGE(D127,E127) -> 0 | I127: 0 | J127: =D127*I127 -> 0 | K127: =E127*I127 -> 0 | L127: =AVERAGE(J127,K127) -> 0
C128: xxxx | D128: 0 | E128: 0 | F128: 0 | I128: 0 | J128: 0 | K128: 0 | L128: 0
C129: xxxx | D129: 0 | E129: 0 | F129: 0 | I129: 0 | J129: 0 | K129: 0 | L129: 0
C130: xxxx | D130: 0 | E130: 0 | F130: 0 | I130: 0 | J130: 0 | K130: 0 | L130: 0
C131: xxxx | D131: 0 | E131: 0 | F131: 0 | I131: 0 | J131: 0 | K131: 0 | L131: 0
C132: xxxx | D132: 0 | E132: 0 | F132: 0 | I132: 0 | J132: 0 | K132: 0 | L132: 0
I133: 0
B134: Detectors | C134: ES400 Vibration detector. White | D134: 10 | E134: 10 | F134: =AVERAGE(D134,E134) -> 10 | I134: 0 | J134: =D134*I134 -> 0 | K134: =E134*I134 -> 0 | L134: =AVERAGE(J134,K134) -> 0 | Q134: NBPZ:5370490001
C135: GB-5700-6 Glassbreak detector,6m,lam | D135: 6 | E135: 6 | F135: 6 | I135: 0 | J135: 0 | K135: 0 | L135: 0 | Q135: V54535-F103-A200
C136: GB-5000-IN Relay-Interface for GB | D136: 5 | E136: 5 | F136: 5 | I136: 0 | J136: 0 | K136: 0 | L136: 0 | Q136: V54550-F112-A100
C137: MK-4400 Magn. Cont.,G2 | D137: 0 | E137: 0 | F137: 0 | I137: 0 | J137: 0 | K137: 0 | L137: 0 | Q137: V54536-F113-A100
C138: TKU2 Surveillance contact | D138: 0 | E138: 0 | F138: 0 | I138: 0 | J138: 0 | K138: 0 | L138: 0 | Q138: VBPZ:2305080001
C139: TKU3 Surveillance contact | D139: 0 | E139: 0 | F139: 0 | I139: 0 | J139: 0 | K139: 0 | L139: 0 | Q139: VBPZ:2305080001
C140: TKU4 Surveillance contact | D140: 0 | E140: 0 | F140: 0 | I140: 0 | J140: 0 | K140: 0 | L140: 0 | Q140: VBPZ:2305080001
C141: TKU5 Surveillance contact | D141: 0 | E141: 0 | F141: 0 | I141: 0 | J141: 0 | K141: 0 | L141: 0 | Q141: VBPZ:2305080001
C142: TKU16 Bolt switch contact | D142: 0 | E142: 0 | F142: 0 | I142: 0 | J142: 0 | K142: 0 | L142: 0 | Q142: VBPZ:2305080001
C143: GM710 Seismic detector | D143: 2.5 | E143: 3.5 | F143: 3 | I143: 0 | J143: 0 | K143: 0 | L143: 0
C144: GM730 Seismic detector | D144: 2.5 | E144: 3.5 | F144: 3 | I144: 0 | J144: 0 | K144: 0 | L144: 0
C145: xxxx | D145: 0 | E145: 0 | F145: 0 | I145: 0 | J145: 0 | K145: 0 | L145: 0
C146: MK-2400-S1 | D146: 0 | E146: 0 | F146: 0 | I146: 0 | J146: 0 | K146: 0 | L146: 0 | Q146: V54536-F104-A100
C147: MK-2400-2 Magn. Cont.,2m,G2 | D147: 0 | E147: 0 | F147: 0 | I147: 0 | J147: 0 | K147: 0 | L147: 0 | Q147: V54536-F102-A100
C148: MK-2400-6 Magn. Cont.,6m,G2 | D148: 0 | E148: 0 | F148: 0 | I148: 0 | J148: 0 | K148: 0 | L148: 0 | Q148: V54536-F102-A200
C149: WM-2 Water detector | D149: 8 | E149: 8 | F149: 8 | I149: 0 | J149: 0 | K149: 0 | L149: 0 | Q149: VDE6:9902500013
I150: 0
B151: Glassbreak Detectors | C151: AGB800 Acoustic Glass Break Detector G2 | D151: 9 | E151: 9 | F151: =AVERAGE(D151,E151) -> 9 | I151: 0 | J151: =D151*I151 -> 0 | K151: =E151*I151 -> 0 | L151: =AVERAGE(J151,K151) -> 0 | Q151: V54535-Z130-A100
C152: AGB800-AM Acoustic Glass Break G3 | D152: 6 | E152: 6 | F152: 6 | I152: 0 | J152: 0 | K152: 0 | L152: 0 | Q152: V54535-Z129-A100
I153: 0
B154: Batteries and accessories | C154: PS1270 Battery 12v/7.0Ah Flame Ret. | D154: 0 | E154: 0 | F154: =AVERAGE(D154,E154) -> 0 | I154: 0 | Q154: N54545-Z156-A100
C155: PS12120 Battery 12v/12.0Ah Flame Ret. | D155: 0 | E155: 0 | F155: 0 | I155: 0 | Q155: N54545-Z157-A100
C156: PS12170 Battery 12v/17.0Ah Flame Ret. | D156: 0 | E156: 0 | F156: 0 | I156: 0 | Q156: N54545-Z158-A100
C157: PS12380 Battery 12v/38.0Ah Flame Ret. | D157: 0 | E157: 0 | F157: 0 | I157: 0 | Q157: N54545-Z160-A100
C158: PS12260 Battery 12v/26.0Ah Flame Ret. | D158: 0 | E158: 0 | F158: 0 | I158: 0 | Q158: N54545-Z159-A100
C159: Electric cable, 100m | D159: 0 | E159: 0 | F159: 0 | I159: 0 | Q159: V54592-Z160-A100
C160: Electric cable, 500m | D160: 0 | E160: 0 | F160: 0 | I160: 0 | Q160: V54592-Z159-A100
I161: 0
I162: 0
B163: Backup accu capacity and backup time | D163: Available* | E163: Required | F163: Power consumers(mA) | J163: =SUM(J9:J152)+(Wizard!E39 * 1000) -> 0 | K163: =SUM(K9:K152)+(Wizard!E39 * 1000) -> 0 | L163: =SUM(L9:L152)+(Wizard!E39 * 1000) -> 0
B164: Required backup power time in h: | D164: =Formula!A28 ->  | E164: =Wizard!E33 -> 16 | F164: Panel PSU + ext. PSU available current (mA) | J164: =K164 -> 0 | K164: =SUM(M9:M18)+(SUM(M50:M55)) -> 0
B165: Required accu total capacity in Ah with included rest capacity: (if applicable) | D165: =Formula!A32 -> 0 | E165: =Formula!A18 -> 0 | F165: still available current (mA) | J165: =K164-J163 -> 0 | K165: =K164-K163 -> 0
G166: Remark: If the available current is red marked, please add an additional PSU to ensure system has sufficient power
B169: *Remark: | C169: Related to the selected panel and ext. PSUs.
M173: mA- (real mA) = remaining

Sheet Order form
B2: SPC - System designer
B7: Project name | C7: - | G7: Vanderbilt Industries
B8: Date | C8: =Summary!D11 -> - | G8: Support material
B9: Order by
B10: Vanderbilt Customer number | C10: 1 | G10: Submit your order here
B11: Total | F11: =SUM(F13:F82) -> 0
B13: Part code | C13: Name | D13: Quantity | E13: Unit Price | F13: Total Price
B14: ='Power calculation'!Q9 -> V54541-C113-A100 | C14: ='Power calculation'!C9 -> SPC4221 7Ah/xxh no IP/G2 cabinet with plastic lid | D14: ='Power calculation'!I9 -> 0 | E14: ='Power calculation'!P9 -> 0 | F14: =E14*D14 -> 0
B15: ='Power calculation'!Q10 -> V54541-C114-A100 | C15: ='Power calculation'!C10 -> SPC4320 7Ah/xxh IP/G2 cabinet with plastic lid | D15: ='Power calculation'!I10 -> 0 | E15: ='Power calculation'!P10 -> 0 | F15: =E15*D15 -> 0
B16: ='Power calculation'!Q11 -> V54541-C109-B100 | C16: ='Power calculation'!C11 -> SPC4320 7Ah/xxh IP/G2 metal cabinet | D16: ='Power calculation'!I11 -> 0 | E16: ='Power calculation'!P11 -> 0 | F16: 0
B17: ='Power calculation'!Q12 -> V54541-C106-B100 | C17: ='Power calculation'!C12 -> SPC5320 7Ah/xxh IP/G2 metal cabinet | D17: ='Power calculation'!I12 -> 0 | E17: ='Power calculation'!P12 -> 0 | F17: 0
B18: ='Power calculation'!Q13 -> V54541-C107-B100 | C18: ='Power calculation'!C13 -> SPC5330 17Ah/xxh IP/G3 metal cabinet | D18: ='Power calculation'!I13 -> 0 | E18: ='Power calculation'!P13 -> 0 | F18: 0
B19: ='Power calculation'!Q14 -> V54541-C105-C100 | C19: ='Power calculation'!C14 -> SPC6330 17Ah/xxh IP/G3 metal cabinet | D19: ='Power calculation'!I14 -> 0 | E19: ='Power calculation'!P14 -> 0 | F19: 0
B20: ='Power calculation'!Q15 -> V54541-C117-A100 | C20: ='Power calculation'!C15 -> SPC5350 1x26Ah/xxh IP/G5 metal cabinet | D20: ='Power calculation'!I15 -> 0 | E20: ='Power calculation'!P15 -> 0 | F20: 0
B21: ='Power calculation'!Q16 -> V54541-C117-A100 | C21: ='Power calculation'!C16 -> SPC5350 2x26Ah/xxh IP/G5 metal cabinet | D21: ='Power calculation'!I16 -> 0 | E21: ='Power calculation'!P16 -> 0 | F21: 0
B22: ='Power calculation'!Q17 -> V54541-C118-A100 | C22: ='Power calculation'!C17 -> SPC6350 1x26Ah/xxh IP/G5 metal cabinet | D22: ='Power calculation'!I17 -> 0 | E22: ='Power calculation'!P17 -> 0 | F22: 0
B23: ='Power calculation'!Q18 -> V54541-C118-A100 | C23: ='Power calculation'!C18 -> SPC6350 2x26Ah/xxh IP/G5 metal cabinet | D23: ='Power calculation'!I18 -> 0 | E23: ='Power calculation'!P18 -> 0 | F23: 0
B24: ='Power calculation'!Q19 -> 0 | C24: ='Power calculation'!C19 -> 0 | D24: ='Power calculation'!I19 -> 0 | E24: ='Power calculation'!P19 -> 0 | F24: 0
B25: ='Power calculation'!Q20 -> V54554-B101-A100 | C25: ='Power calculation'!C20 -> SPCW110 SiWay RF Kit w. ext. Antenna | D25: ='Power calculation'!I20 -> 0 | E25: ='Power calculation'!P20 -> 0 | F25: 0
B26: ='Power calculation'!Q21 -> V54554-B105-A100 | C26: ='Power calculation'!C21 -> SPCW111 SiWay RF Kit w. int. Antenna | D26: ='Power calculation'!I21 -> 0 | E26: ='Power calculation'!P21 -> 0 | F26: 0
B27: ='Power calculation'!Q22 -> V54554-B103-B100 | C27: ='Power calculation'!C22 -> SPCW112 SiWay RF Kit for SPCK42x | D27: ='Power calculation'!I22 -> 0 | E27: ='Power calculation'!P22 -> 0 | F27: 0
B28: ='Power calculation'!Q23 -> V54554-B104-A100 | C28: ='Power calculation'!C23 -> SPCW114 SiWay RF Kit for SPCK52x | D28: ='Power calculation'!I23 -> 0 | E28: ='Power calculation'!P23 -> 0 | F28: 0
B29: ='Power calculation'!Q24 -> V54554-F101-B100 | C29: ='Power calculation'!C24 -> SPCW130 SiWay RF Expander | D29: ='Power calculation'!I24 -> 0 | E29: ='Power calculation'!P24 -> 0 | F29: 0
B30: ='Power calculation'!Q25 -> 0 | C30: ='Power calculation'!C25 -> 0 | D30: ='Power calculation'!I25 -> 0 | E30: ='Power calculation'!P25 -> 0 | F30: 0
B31: ='Power calculation'!Q26 -> V54550-B101-A100 | C31: ='Power calculation'!C26 -> SPCN110 PSTN module | D31: ='Power calculation'!I26 -> 0 | E31: ='Power calculation'!P26 -> 0 | F31: 0
B32: ='Power calculation'!Q27 -> V54550-B102-A200 | C32: ='Power calculation'!C27 -> SPCN320.000 GSM Module incl. antenna | D32: ='Power calculation'!I27 -> 0 | E32: ='Power calculation'!P27 -> 0 | F32: 0
B33: ='Power calculation'!Q28 -> V54550-B104-A100 | C33: ='Power calculation'!C28 -> SPCN910 communication interface module | D33: ='Power calculation'!I28 -> 0 | E33: ='Power calculation'!P28 -> 0 | F33: 0
B34: ='Power calculation'!Q29 -> 0 | C34: ='Power calculation'!C29 -> 0 | D34: ='Power calculation'!I29 -> 0 | E34: ='Power calculation'!P29 -> 0 | F34: 0
B35: ='Power calculation'!Q30 -> V54543-F101-A100 | C35: ='Power calculation'!C30 -> SPCK420 LCD Keypad | D35: ='Power calculation'!I30 -> 0 | E35: ='Power calculation'!P30 -> 0 | F35: 0
B36: ='Power calculation'!Q31 -> V54543-F102-A100 | C36: ='Power calculation'!C31 -> SPCK421 LCD Keypad with Reader | D36: ='Power calculation'!I31 -> 0 | E36: ='Power calculation'!P31 -> 0 | F36: 0
B37: ='Power calculation'!Q32 -> V54543-F115-A100 | C37: ='Power calculation'!C32 -> SPCK520 LCD Compact keypad | D37: ='Power calculation'!I32 -> 0 | E37: ='Power calculation'!P32 -> 0 | F37: 0
B38: ='Power calculation'!Q33 -> V54543-F116-A100 | C38: ='Power calculation'!C33 -> SPCK521 LCD Compact keypad with Mifare/125KHz reader and Audio | D38: ='Power calculation'!I33 -> 0 | E38: ='Power calculation'!P33 -> 0 | F38: 0
B39: ='Power calculation'!Q34 -> V54543-F110-A100 | C39: ='Power calculation'!C34 -> SPCK620 Comfort Keypad | D39: ='Power calculation'!I34 -> 0 | E39: ='Power calculation'!P34 -> 0 | F39: 0
B40: ='Power calculation'!Q35 -> V54543-F111-A100 | C40: ='Power calculation'!C35 -> SPCK623 Comfort Keypad (Audio/Card) | D40: ='Power calculation'!I35 -> 0 | E40: ='Power calculation'!P35 -> 0 | F40: 0
B41: ='Power calculation'!Q36 -> 0 | C41: ='Power calculation'!C36 -> 0 | D41: ='Power calculation'!I36 -> 0 | E41: ='Power calculation'!P36 -> 0 | F41: 0
B42: ='Power calculation'!Q37 -> V54542-F106-A100 | C42: ='Power calculation'!C37 -> SPCE652 Expander (8 Inputs / 2 Outputs) | D42: ='Power calculation'!I37 -> 0 | E42: ='Power calculation'!P37 -> 0 | F42: 0
B43: ='Power calculation'!Q38 -> V54542-F107-A100 | C43: ='Power calculation'!C38 -> SPCE452 Expander (8 Outputs ) | D43: ='Power calculation'!I38 -> 0 | E43: ='Power calculation'!P38 -> 0 | F43: 0
B44: ='Power calculation'!Q39 -> V54547-A101-A100 | C44: ='Power calculation'!C39 -> SPCA210 2-Door Expander | D44: ='Power calculation'!I39 -> 0 | E44: ='Power calculation'!P39 -> 0 | F44: 0
B45: ='Power calculation'!Q40 -> V54542-F105-A100 | C45: ='Power calculation'!C40 -> SPCE120 Indication Expander | D45: ='Power calculation'!I40 -> 0 | E45: ='Power calculation'!P40 -> 0 | F45: 0
B46: ='Power calculation'!Q41 -> V54542-F104-A100 | C46: ='Power calculation'!C41 -> SPCE110 Key switch Expander | D46: ='Power calculation'!I41 -> 0 | E46: ='Power calculation'!P41 -> 0 | F46: 0
B47: ='Power calculation'!Q42 -> V54542-F120-A100 | C47: ='Power calculation'!C42 -> SPCV310 Audio station (loudspeaker & Microphone) with housing | D47: ='Power calculation'!I42 -> 0 | E47: ='Power calculation'!P42 -> 0 | F47: 0
B48: ='Power calculation'!Q43 -> 0 | C48: ='Power calculation'!C43 -> SPCV320 Audio I/O Expander w. 4 inputs/ 1 open collector output | D48: ='Power calculation'!I43 -> 0 | E48: ='Power calculation'!P43 -> 0 | F48: 0
B49: ='Power calculation'!Q44 -> 0 | C49: ='Power calculation'!C44 -> SPCV321 Audio Input Expander w. 4 inputs / 1 line out | D49: ='Power calculation'!I44 -> 0 | E49: ='Power calculation'!P44 -> 0 | F49: 0
B50: ='Power calculation'!Q45 -> V54542-F108-B100 | C50: ='Power calculation'!C45 -> SPCV340 Audio I/O Expander w. 4 inputs / 1 open collector output | D50: ='Power calculation'!I45 -> 0 | E50: ='Power calculation'!P45 -> 0 | F50: 0
B51: ='Power calculation'!Q46 -> V54542-F109-B100 | C51: ='Power calculation'!C46 -> SPCV341 Audio Input Expander w. 4 inputs / 1 line out | D51: ='Power calculation'!I46 -> 0 | E51: ='Power calculation'!P46 -> 0 | F51: 0
B52: ='Power calculation'!Q47 -> V54542-F119-A100 | C52: ='Power calculation'!C47 -> SPCV410 Audio Expander w. 1 input (slave module) | D52: ='Power calculation'!I47 -> 0 | E52: ='Power calculation'!P47 -> 0 | F52: 0
B53: ='Power calculation'!Q48 -> V54542-F118-A100 | C53: ='Power calculation'!C48 -> SPCV440 Audio Expander w. 4 inputs/ 1 open collector output | D53: ='Power calculation'!I48 -> 0 | E53: ='Power calculation'!P48 -> 0 | F53: 0
B54: ='Power calculation'!Q49 -> 0 | C54: ='Power calculation'!C49 -> 0 | D54: ='Power calculation'!I49 -> 0 | E54: ='Power calculation'!P49 -> 0 | F54: 0
B55: ='Power calculation'!Q50 -> V54545-C102-A100 | C55: ='Power calculation'!C50 -> SPCP332 PSU w. I/O Exp. SPCE652 - G2 - 7Ah | D55: ='Power calculation'!I50 -> 0 | E55: ='Power calculation'!P50 -> 0 | F55: 0
B56: ='Power calculation'!Q51 -> V54545-C101-A100 | C56: ='Power calculation'!C51 -> SPCP333 PSU w. I/O Exp. SPCE652 - G3 - 17Ah | D56: ='Power calculation'!I51 -> 0 | E56: ='Power calculation'!P51 -> 0 | F56: 0
B57: ='Power calculation'!Q52 -> V54545-C105-A100 | C57: ='Power calculation'!C52 -> SPCP355 PSU w. I/O Exp. SPCE652 - G5 - 1x26Ah | D57: ='Power calculation'!I52 -> 0 | E57: ='Power calculation'!P52 -> 0 | F57: 0
B58: ='Power calculation'!Q53 -> V54545-C105-A100 | C58: ='Power calculation'!C53 -> SPCP355 PSU w. I/O Exp. SPCE652 - G5 - 2x26Ah | D58: ='Power calculation'!I53 -> 0 | E58: ='Power calculation'!P53 -> 0 | F58: 0
B59: ='Power calculation'!Q54 -> V54545-C103-A100 | C59: ='Power calculation'!C54 -> SPCP432 PSU w. door Exp. SPCA210 - G2 - 7Ah | D59: ='Power calculation'!I54 -> 0 | E59: ='Power calculation'!P54 -> 0 | F59: 0
B60: ='Power calculation'!Q55 -> V54545-C104-A100 | C60: ='Power calculation'!C55 -> SPCP433 PSU w. door Exp. SPCA210 - G3 - 17Ah | D60: ='Power calculation'!I55 -> 0 | E60: ='Power calculation'!P55 -> 0 | F60: 0
B61: ='Power calculation'!Q56 -> 0 | C61: ='Power calculation'!C56 -> 0 | D61: ='Power calculation'!I56 -> 0 | E61: ='Power calculation'!P56 -> 0 | F61: 0
B62: ='Power calculation'!Q57 -> V54554-A101-A100 | C62: ='Power calculation'!C57 -> SPCG310 E-BUS Gateway for SPC | D62: ='Power calculation'!I57 -> 0 | E62: ='Power calculation'!P57 -> 0 | F62: 0
B63: ='Power calculation'!Q58 -> 0 | C63: ='Power calculation'!C58 -> SAT12/SMT12 | D63: ='Power calculation'!I58 -> 0 | E63: ='Power calculation'!P58 -> 0 | F63: 0
B64: ='Power calculation'!Q59 -> 0 | C64: ='Power calculation'!C59 -> SMT22 | D64: ='Power calculation'!I59 -> 0 | E64: ='Power calculation'!P59 -> 0 | F64: 0
B65: ='Power calculation'!Q60 -> 0 | C65: ='Power calculation'!C60 -> SAT24/SMT24 | D65: ='Power calculation'!I60 -> 0 | E65: ='Power calculation'!P60 -> 0 | F65: 0
B66: ='Power calculation'!Q61 -> 0 | C66: ='Power calculation'!C61 -> SMT44 | D66: ='Power calculation'!I61 -> 0 | E66: ='Power calculation'!P61 -> 0 | F66: 0
B67: ='Power calculation'!Q62 -> 0 | C67: ='Power calculation'!C62 -> SAK41 | D67: ='Power calculation'!I62 -> 0 | E67: ='Power calculation'!P62 -> 0 | F67: 0
B68: ='Power calculation'!Q63 -> 0 | C68: ='Power calculation'!C63 -> SAK51 | D68: ='Power calculation'!I63 -> 0 | E68: ='Power calculation'!P63 -> 0 | F68: 0
B69: ='Power calculation'!Q64 -> V54530-F115-A100 | C69: ='Power calculation'!C64 -> PDM-E-I12 | D69: ='Power calculation'!I64 -> 0 | E69: ='Power calculation'!P64 -> 0 | F69: 0
B70: ='Power calculation'!Q65 -> V54530-F116-A100 | C70: ='Power calculation'!C65 -> PDM-E-I18T | D70: ='Power calculation'!I65 -> 0 | E70: ='Power calculation'!P65 -> 0 | F70: 0
B71: ='Power calculation'!Q66 -> V54531-F130-A100 | C71: ='Power calculation'!C66 -> PDM-E-IXD12 | D71: ='Power calculation'!I66 -> 0 | E71: ='Power calculation'!P66 -> 0 | F71: 0
B72: ='Power calculation'!Q67 -> V54531-F131-A100 | C72: ='Power calculation'!C67 -> PDM-E-IXD18T | D72: ='Power calculation'!I67 -> 0 | E72: ='Power calculation'!P67 -> 0 | F72: 0
B73: ='Power calculation'!Q68 -> VBPZ: 5198210001 | C73: ='Power calculation'!C68 -> UP370MD E-BUS | D73: ='Power calculation'!I68 -> 0 | E73: ='Power calculation'!P68 -> 0 | F73: 0
B74: ='Power calculation'!Q69 -> VBPZ: 5199990001 | C74: ='Power calculation'!C69 -> UP370T E-BUS | D74: ='Power calculation'!I69 -> 0 | E74: ='Power calculation'!P69 -> 0 | F74: 0
B75: ='Power calculation'!Q70 -> 0 | C75: ='Power calculation'!C70 -> DIVERS | D75: ='Power calculation'!I70 -> 0 | E75: ='Power calculation'!P70 -> 0 | F75: 0
B76: ='Power calculation'!Q71 -> 0 | C76: ='Power calculation'!C71 -> 0 | D76: ='Power calculation'!I71 -> 0 | E76: ='Power calculation'!P71 -> 0 | F76: 0
B77: ='Power calculation'!Q72 -> V54530-F114-A100 | C77: ='Power calculation'!C72 -> PDM-I12 Passiv Infrared Detector 12m detection range | D77: ='Power calculation'!I72 -> 0 | E77: ='Power calculation'!P72 -> 0 | F77: 0
B78: ='Power calculation'!Q73 -> V54530-F105-A100 | C78: ='Power calculation'!C73 -> PDM-I12T Passiv Infrared Detector 12m detection range with Antimask | D78: ='Power calculation'!I73 -> 0 | E78: ='Power calculation'!P73 -> 0 | F78: 0
B79: ='Power calculation'!Q74 -> V54530-F106-A100 | C79: ='Power calculation'!C74 -> PDM-I18 Passiv Infrared Detector 18m detection range | D79: ='Power calculation'!I74 -> 0 | E79: ='Power calculation'!P74 -> 0 | F79: =E79*D79 -> 0
B80: ='Power calculation'!Q75 -> V54530-F107-A100 | C80: ='Power calculation'!C75 -> PDM-I18T Passiv Infrared Detector 18m detection range with Antimask | D80: ='Power calculation'!I75 -> 0 | E80: ='Power calculation'!P75 -> 0 | F80: 0
B81: ='Power calculation'!Q76 -> 0 | C81: ='Power calculation'!C76 -> 0 | D81: ='Power calculation'!I76 -> 0 | E81: ='Power calculation'!P76 -> 0 | F81: 0
B82: ='Power calculation'!Q77 -> V54531-F124-A100 | C82: ='Power calculation'!C77 -> PDM-IXD12 Dual Detector (PIR/MW) 12m detection range | D82: ='Power calculation'!I77 -> 0 | E82: ='Power calculation'!P77 -> 0 | F82: 0
B83: ='Power calculation'!Q78 -> V54531-F115-A100 | C83: ='Power calculation'!C78 -> PDM-IXD12T Dual Detector (PIR/MW) 12m detection range with Antimask | D83: ='Power calculation'!I78 -> 0 | E83: ='Power calculation'!P78 -> 0 | F83: 0
B84: ='Power calculation'!Q79 -> V54531-F118-A100 | C84: ='Power calculation'!C79 -> PDM-IXD18 Dual Detector (PIR/MW) 18m detection range | D84: ='Power calculation'!I79 -> 0 | E84: ='Power calculation'!P79 -> 0 | F84: 0
B85: ='Power calculation'!Q80 -> V54531-F121-A100 | C85: ='Power calculation'!C80 -> PDM-IXD18T Dual Detector (PIR/MW) 18m detection range with Antimask | D85: ='Power calculation'!I80 -> 0 | E85: ='Power calculation'!P80 -> 0 | F85: 0
B86: ='Power calculation'!Q81 -> V54531-F113-A100 | C86: ='Power calculation'!C81 -> PDM-IXA12 Dual Detector (PIR/MW) 12m detection range | D86: ='Power calculation'!I81 -> 0 | E86: ='Power calculation'!P81 -> 0 | F86: 0
B87: ='Power calculation'!Q82 -> V54531-F116-A100 | C87: ='Power calculation'!C82 -> PDM-IXA12T Dual Detector (PIR/MW) 12m detection range with Antimask | D87: ='Power calculation'!I82 -> 0 | E87: ='Power calculation'!P82 -> 0 | F87: 0
B88: ='Power calculation'!Q83 -> V54531-F119-A100 | C88: ='Power calculation'!C83 -> PDM-IXA18 Dual Detector (PIR/MW) 18m detection range | D88: ='Power calculation'!I83 -> 0 | E88: ='Power calculation'!P83 -> 0 | F88: 0
B89: ='Power calculation'!Q84 -> V54531-F122-A100 | C89: ='Power calculation'!C84 -> PDM-IXA18T Dual Detector (PIR/MW) 18m detection range with Antimask | D89: ='Power calculation'!I84 -> 0 | E89: ='Power calculation'!P84 -> 0 | F89: 0
B90: ='Power calculation'!Q85 -> V54531-F114-A100 | C90: ='Power calculation'!C85 -> PDM-IXE12 Dual Detector (PIR/MW) 12m detection range | D90: ='Power calculation'!I85 -> 0 | E90: ='Power calculation'!P85 -> 0 | F90: 0
B91: ='Power calculation'!Q86 -> V54531-F117-A100 | C91: ='Power calculation'!C86 -> PDM-IXE12T Dual Detector (PIR/MW) 12m detection range with Antimask | D91: ='Power calculation'!I86 -> 0 | E91: ='Power calculation'!P86 -> 0 | F91: 0
B92: ='Power calculation'!Q87 -> V54531-F120-A100 | C92: ='Power calculation'!C87 -> PDM-IXE18 Dual Detector (PIR/MW) 18m detection range | D92: ='Power calculation'!I87 -> 0 | E92: ='Power calculation'!P87 -> 0 | F92: 0
B93: ='Power calculation'!Q88 -> V54531-F123-A100 | C93: ='Power calculation'!C88 -> PDM-IXE18T Dual Detector (PIR/MW) 18m detection range with Antimask | D93: ='Power calculation'!I88 -> 0 | E93: ='Power calculation'!P88 -> 0 | F93: 0
B94: ='Power calculation'!Q89 -> 0 | C94: ='Power calculation'!C89 -> UP370MD Dual Detector (PIR/US) 10m detection range with Alarm storage | D94: ='Power calculation'!I89 -> 0 | E94: ='Power calculation'!P89 -> 0 | F94: 0
B95: ='Power calculation'!Q90 -> 0 | C95: ='Power calculation'!C90 -> UP370T Dual Detector (PIR/US) 10m detection range with Antimask | D95: ='Power calculation'!I90 -> 0 | E95: ='Power calculation'!P90 -> 0 | F95: 0
B96: ='Power calculation'!Q91 -> 0 | C96: ='Power calculation'!C91 -> 0 | D96: ='Power calculation'!I91 -> 0 | E96: ='Power calculation'!P91 -> 0 | F96: 0
B97: ='Power calculation'!Q92 -> V24246-F4703-A1 | C97: ='Power calculation'!C92 -> HD500-Cotag (card reader without keypad) | D97: ='Power calculation'!I92 -> 0 | E97: ='Power calculation'!P92 -> 0 | F97: 0
B98: ='Power calculation'!Q93 -> 0 | C98: ='Power calculation'!C93 -> HD500-EM (card reader without keypad) | D98: ='Power calculation'!I93 -> 0 | E98: ='Power calculation'!P93 -> 0 | F98: 0
B99: ='Power calculation'!Q94 -> N54547-Z101-A500 | C99: ='Power calculation'!C94 -> HMD TKSV-SES-S / CDA2 | D99: ='Power calculation'!I94 -> 0 | E99: ='Power calculation'!P94 -> 0 | F99: 0
B100: ='Power calculation'!Q95 -> N54547-Z101-A400 | C100: ='Power calculation'!C95 -> HMD TKWA AES / CDA2 | D100: ='Power calculation'!I95 -> 0 | E100: ='Power calculation'!P95 -> 0 | F100: 0
B101: ='Power calculation'!Q96 -> N54547-Z101-A300 | C101: ='Power calculation'!C96 -> HMD LWA-AES / CDA2 | D101: ='Power calculation'!I96 -> 0 | E101: ='Power calculation'!P96 -> 0 | F101: 0
B102: ='Power calculation'!Q97 -> V54504-F101-A100 | C102: ='Power calculation'!C97 -> VR10S-MF (Mifare card reader) | D102: ='Power calculation'!I97 -> 0 | E102: ='Power calculation'!P97 -> 0 | F102: 0
B103: ='Power calculation'!Q98 -> V54504-F111-A100 | C103: ='Power calculation'!C98 -> VR20M-MF Mifare card readerstandard | D103: ='Power calculation'!I98 -> 0 | E103: ='Power calculation'!P98 -> 0 | F103: 0
B104: ='Power calculation'!Q99 -> N54547-B105-A100 | C104: ='Power calculation'!C99 -> N54547-B105-A100 VR reader interface | D104: ='Power calculation'!I99 -> 0 | E104: ='Power calculation'!P99 -> 0 | F104: 0
B105: ='Power calculation'!Q100 -> 0 | C105: ='Power calculation'!C100 -> 0 | D105: ='Power calculation'!I100 -> 0 | E105: ='Power calculation'!P100 -> 0 | F105: 0
B106: ='Power calculation'!Q101 -> V54504-F112-A100 | C106: ='Power calculation'!C101 -> VR50M-MF Mifare card reader standard with keypad | D106: ='Power calculation'!I101 -> 0 | E106: ='Power calculation'!P101 -> 0 | F106: 0
B107: ='Power calculation'!Q102 -> 0 | C107: ='Power calculation'!C102 -> AR6182-MX (card reader with keypad) | D107: ='Power calculation'!I102 -> 0 | E107: ='Power calculation'!P102 -> 0 | F107: 0
B108: ='Power calculation'!Q103 -> V54501-F1-A1 | C108: ='Power calculation'!C103 -> PP500-EM (card reader with keypad) | D108: ='Power calculation'!I103 -> 0 | E108: ='Power calculation'!P103 -> 0 | F108: 0
B109: ='Power calculation'!Q104 -> 0 | C109: ='Power calculation'!C104 -> HFS-TKWA-AES/CDA2 (card reader with keypad- color silver) | D109: ='Power calculation'!I104 -> 0 | E109: ='Power calculation'!P104 -> 0 | F109: 0
B110: ='Power calculation'!Q105 -> 0 | C110: ='Power calculation'!C105 -> HFS-TKWA-APW/CDA2 (card reader with keypad- color white) | D110: ='Power calculation'!I105 -> 0 | E110: ='Power calculation'!P105 -> 0 | F110: 0
B111: ='Power calculation'!Q106 -> 0 | C111: ='Power calculation'!C106 -> HFS-KLS-SMT/CDA2 (card reader with keypad) Siedle vario 611 | D111: ='Power calculation'!I106 -> 0 | E111: ='Power calculation'!P106 -> 0 | F111: 0
B112: ='Power calculation'!Q107 -> V54504-F102-A100 | C112: ='Power calculation'!C107 -> VR40S-MF (Mifare card reader with keyboard and display) | D112: ='Power calculation'!I107 -> 0 | E112: ='Power calculation'!P107 -> 0 | F112: 0
B113: ='Power calculation'!Q108 -> 0 | C113: ='Power calculation'!C108 -> N54547-B105-A100 VR reader interface | D113: ='Power calculation'!I108 -> 0 | E113: ='Power calculation'!P108 -> 0 | F113: 0
B114: ='Power calculation'!Q109 -> 0 | C114: ='Power calculation'!C109 -> 0 | D114: ='Power calculation'!I109 -> 0 | E114: ='Power calculation'!P109 -> 0 | F114: 0
B115: ='Power calculation'!Q110 -> V54515-Z102-A200 | C115: ='Power calculation'!C110 -> IB43-MIFARE DESFire-BL (pack of 10) ,Printable MIFARE DESFire cards | D115: ='Power calculation'!I110 -> 0 | E115: ='Power calculation'!P110 -> 0 | F115: 0
B116: ='Power calculation'!Q111 -> V54515-Z103-A100 | C116: ='Power calculation'!C111 -> IB47-MIFARE DESFire-HD, Heavy-duty MIFARE DESFire tags | D116: ='Power calculation'!I111 -> 0 | E116: ='Power calculation'!P111 -> 0 | F116: 0
B117: ='Power calculation'!Q112 -> S54515-Z105-A100 | C117: ='Power calculation'!C112 -> MT1-BL, Dual-Tech Card EM/DESFire 10pcs | D117: ='Power calculation'!I112 -> 0 | E117: ='Power calculation'!P112 -> 0 | F117: 0
B118: ='Power calculation'!Q113 -> V24246-D4901-A1 | C118: ='Power calculation'!C113 -> IB42-EM , Blank printable EM laminated card without print | D118: ='Power calculation'!I113 -> 0 | E118: ='Power calculation'!P113 -> 0 | F118: 0
B119: ='Power calculation'!Q114 -> 0 | C119: ='Power calculation'!C114 -> 0 | D119: ='Power calculation'!I114 -> 0 | E119: ='Power calculation'!P114 -> 0 | F119: 0
B120: ='Power calculation'!Q115 -> 0 | C120: ='Power calculation'!C115 -> BES-A/O | D120: ='Power calculation'!I115 -> 0 | E120: ='Power calculation'!P115 -> 0 | F120: 0
B121: ='Power calculation'!Q116 -> 0 | C121: ='Power calculation'!C116 -> SG3200AK/OP | D121: ='Power calculation'!I116 -> 0 | E121: ='Power calculation'!P116 -> 0 | F121: 0
B122: ='Power calculation'!Q117 -> 0 | C122: ='Power calculation'!C117 -> ROLP-LX-x | D122: ='Power calculation'!I117 -> 0 | E122: ='Power calculation'!P117 -> 0 | F122: 0
B123: ='Power calculation'!Q118 -> N54539-Z149-A100 | C123: ='Power calculation'!C118 -> SIREX Outdoor siren A2P3, 110db, AL | D123: ='Power calculation'!I118 -> 0 | E123: ='Power calculation'!P118 -> 0 | F123: 0
B124: ='Power calculation'!Q119 -> N54539-Z135-A100 | C124: ='Power calculation'!C119 -> SIREXF Outdr. siren A2P3,110db,AL,flash | D124: ='Power calculation'!I119 -> 0 | E124: ='Power calculation'!P119 -> 0 | F124: 0
B125: ='Power calculation'!Q120 -> N54539-Z135-A100 | C125: ='Power calculation'!C120 -> SIRUS Outdr. siren NFA2P,type3,pc,flash | D125: ='Power calculation'!I120 -> 0 | E125: ='Power calculation'!P120 -> 0 | F125: 0
B126: ='Power calculation'!Q121 -> N54539-Z135-A100 | C126: ='Power calculation'!C121 -> SA100-AS Outdoor siren | D126: ='Power calculation'!I121 -> 0 | E126: ='Power calculation'!P121 -> 0 | F126: 0
B127: ='Power calculation'!Q122 -> N54539-Z135-A100 | C127: ='Power calculation'!C122 -> Piccolo SO/Piccolo/BL/G3S5 (internal) | D127: ='Power calculation'!I122 -> 0 | E127: ='Power calculation'!P122 -> 0 | F127: 0
B128: ='Power calculation'!Q123 -> 0 | C128: ='Power calculation'!C123 -> 0 | D128: ='Power calculation'!I123 -> 0 | E128: ='Power calculation'!P123 -> 0 | F128: 0
B129: ='Power calculation'!Q124 -> 0 | C129: ='Power calculation'!C124 -> BES-A | D129: ='Power calculation'!I124 -> 0 | E129: ='Power calculation'!P124 -> 0 | F129: 0
B130: ='Power calculation'!Q125 -> 0 | C130: ='Power calculation'!C125 -> SG3100AK | D130: ='Power calculation'!I125 -> 0 | E130: ='Power calculation'!P125 -> 0 | F130: 0
B131: ='Power calculation'!Q126 -> 0 | C131: ='Power calculation'!C126 -> 0 | D131: ='Power calculation'!I126 -> 0 | E131: ='Power calculation'!P126 -> 0 | F131: 0
B132: ='Power calculation'!Q127 -> 0 | C132: ='Power calculation'!C127 -> xxxx | D132: ='Power calculation'!I127 -> 0 | E132: ='Power calculation'!P127 -> 0 | F132: 0
B133: ='Power calculation'!Q128 -> 0 | C133: ='Power calculation'!C128 -> xxxx | D133: ='Power calculation'!I128 -> 0 | E133: ='Power calculation'!P128 -> 0 | F133: 0
B134: ='Power calculation'!Q129 -> 0 | C134: ='Power calculation'!C129 -> xxxx | D134: ='Power calculation'!I129 -> 0 | E134: ='Power calculation'!P129 -> 0 | F134: 0
B135: ='Power calculation'!Q130 -> 0 | C135: ='Power calculation'!C130 -> xxxx | D135: ='Power calculation'!I130 -> 0 | E135: ='Power calculation'!P130 -> 0 | F135: 0
B136: ='Power calculation'!Q131 -> 0 | C136: ='Power calculation'!C131 -> xxxx | D136: ='Power calculation'!I131 -> 0 | E136: ='Power calculation'!P131 -> 0 | F136: 0
B137: ='Power calculation'!Q132 -> 0 | C137: ='Power calculation'!C132 -> xxxx | D137: ='Power calculation'!I132 -> 0 | E137: ='Power calculation'!P132 -> 0 | F137: 0
B138: ='Power calculation'!Q133 -> 0 | C138: ='Power calculation'!C133 -> 0 | D138: ='Power calculation'!I133 -> 0 | E138: ='Power calculation'!P133 -> 0 | F138: 0
B139: ='Power calculation'!Q134 -> NBPZ:5370490001 | C139: ='Power calculation'!C134 -> ES400 Vibration detector. White | D139: ='Power calculation'!I134 -> 0 | E139: ='Power calculation'!P134 -> 0 | F139: 0
B140: ='Power calculation'!Q135 -> V54535-F103-A200 | C140: ='Power calculation'!C135 -> GB-5700-6 Glassbreak detector,6m,lam | D140: ='Power calculation'!I135 -> 0 | E140: ='Power calculation'!P135 -> 0 | F140: 0
B141: ='Power calculation'!Q136 -> V54550-F112-A100 | C141: ='Power calculation'!C136 -> GB-5000-IN Relay-Interface for GB | D141: ='Power calculation'!I136 -> 0 | E141: ='Power calculation'!P136 -> 0 | F141: 0
B142: ='Power calculation'!Q137 -> V54536-F113-A100 | C142: ='Power calculation'!C137 -> MK-4400 Magn. Cont.,G2 | D142: ='Power calculation'!I137 -> 0 | E142: ='Power calculation'!P137 -> 0 | F142: 0
B143: ='Power calculation'!Q138 -> VBPZ:2305080001 | C143: ='Power calculation'!C138 -> TKU2 Surveillance contact | D143: ='Power calculation'!I138 -> 0 | E143: ='Power calculation'!P138 -> 0 | F143: =E143*D143 -> 0
B144: ='Power calculation'!Q139 -> VBPZ:2305080001 | C144: ='Power calculation'!C139 -> TKU3 Surveillance contact | D144: ='Power calculation'!I139 -> 0 | E144: ='Power calculation'!P139 -> 0 | F144: 0
B145: ='Power calculation'!Q140 -> VBPZ:2305080001 | C145: ='Power calculation'!C140 -> TKU4 Surveillance contact | D145: ='Power calculation'!I140 -> 0 | E145: ='Power calculation'!P140 -> 0 | F145: 0
B146: ='Power calculation'!Q141 -> VBPZ:2305080001 | C146: ='Power calculation'!C141 -> TKU5 Surveillance contact | D146: ='Power calculation'!I141 -> 0 | E146: ='Power calculation'!P141 -> 0 | F146: 0
B147: ='Power calculation'!Q142 -> VBPZ:2305080001 | C147: ='Power calculation'!C142 -> TKU16 Bolt switch contact | D147: ='Power calculation'!I142 -> 0 | E147: ='Power calculation'!P142 -> 0 | F147: 0
B148: ='Power calculation'!Q143 -> 0 | C148: ='Power calculation'!C143 -> GM710 Seismic detector | D148: ='Power calculation'!I143 -> 0 | E148: ='Power calculation'!P143 -> 0 | F148: 0
B149: ='Power calculation'!Q144 -> 0 | C149: ='Power calculation'!C144 -> GM730 Seismic detector | D149: ='Power calculation'!I144 -> 0 | E149: ='Power calculation'!P144 -> 0 | F149: 0
B150: ='Power calculation'!Q145 -> 0 | C150: ='Power calculation'!C145 -> xxxx | D150: ='Power calculation'!I145 -> 0 | E150: ='Power calculation'!P145 -> 0 | F150: 0
B151: ='Power calculation'!Q146 -> V54536-F104-A100 | C151: ='Power calculation'!C146 -> MK-2400-S1 | D151: ='Power calculation'!I146 -> 0 | E151: ='Power calculation'!P146 -> 0 | F151: 0
B152: ='Power calculation'!Q147 -> V54536-F102-A100 | C152: ='Power calculation'!C147 -> MK-2400-2 Magn. Cont.,2m,G2 | D152: ='Power calculation'!I147 -> 0 | E152: ='Power calculation'!P147 -> 0 | F152: 0
B153: ='Power calculation'!Q148 -> V54536-F102-A200 | C153: ='Power calculation'!C148 -> MK-2400-6 Magn. Cont.,6m,G2 | D153: ='Power calculation'!I148 -> 0 | E153: ='Power calculation'!P148 -> 0 | F153: 0
B154: ='Power calculation'!Q149 -> VDE6:9902500013 | C154: ='Power calculation'!C149 -> WM-2 Water detector | D154: ='Power calculation'!I149 -> 0 | E154: ='Power calculation'!P149 -> 0 | F154: 0
B155: ='Power calculation'!Q150 -> 0 | C155: ='Power calculation'!C150 -> 0 | D155: ='Power calculation'!I150 -> 0 | E155: ='Power calculation'!P150 -> 0 | F155: 0
B156: ='Power calculation'!Q151 -> V54535-Z130-A100 | C156: ='Power calculation'!C151 -> AGB800 Acoustic Glass Break Detector G2 | D156: ='Power calculation'!I151 -> 0 | E156: ='Power calculation'!P151 -> 0 | F156: 0
B157: ='Power calculation'!Q152 -> V54535-Z129-A100 | C157: ='Power calculation'!C152 -> AGB800-AM Acoustic Glass Break G3 | D157: ='Power calculation'!I152 -> 0 | E157: ='Power calculation'!P152 -> 0 | F157: 0
B158: ='Power calculation'!Q153 -> 0 | C158: ='Power calculation'!C153 -> 0 | D158: ='Power calculation'!I153 -> 0 | E158: ='Power calculation'!P153 -> 0 | F158: 0
B159: ='Power calculation'!Q154 -> N54545-Z156-A100 | C159: ='Power calculation'!C154 -> PS1270 Battery 12v/7.0Ah Flame Ret. | D159: ='Power calculation'!I154 -> 0 | E159: ='Power calculation'!P154 -> 0 | F159: 0
B160: ='Power calculation'!Q155 -> N54545-Z157-A100 | C160: ='Power calculation'!C155 -> PS12120 Battery 12v/12.0Ah Flame Ret. | D160: ='Power calculation'!I155 -> 0 | E160: ='Power calculation'!P155 -> 0 | F160: 0
B161: ='Power calculation'!Q156 -> N54545-Z158-A100 | C161: ='Power calculation'!C156 -> PS12170 Battery 12v/17.0Ah Flame Ret. | D161: ='Power calculation'!I156 -> 0 | E161: ='Power calculation'!P156 -> 0 | F161: =E161*D161 -> 0
B162: ='Power calculation'!Q157 -> N54545-Z160-A100 | C162: ='Power calculation'!C157 -> PS12380 Battery 12v/38.0Ah Flame Ret. | D162: ='Power calculation'!I157 -> 0 | E162: ='Power calculation'!P157 -> 0 | F162: =E162*D162 -> 0
B163: ='Power calculation'!Q158 -> N54545-Z159-A100 | C163: ='Power calculation'!C158 -> PS12260 Battery 12v/26.0Ah Flame Ret. | D163: ='Power calculation'!I158 -> 0 | E163: ='Power calculation'!P158 -> 0 | F163: 0
B164: ='Power calculation'!Q159 -> V54592-Z160-A100 | C164: ='Power calculation'!C159 -> Electric cable, 100m | D164: ='Power calculation'!I159 -> 0 | E164: ='Power calculation'!P159 -> 0 | F164: 0
B165: ='Power calculation'!Q160 -> V54592-Z159-A100 | C165: ='Power calculation'!C160 -> Electric cable, 500m | D165: ='Power calculation'!I160 -> 0 | E165: ='Power calculation'!P160 -> 0 | F165: 0

Sheet Summary
B4: System Summary
H5: Support material
H6: Limits and variants
H7: Specifier resources
D8: Current System | F8: Required | H8: Limit of system
B9: Panel type | I9: 0 | J9: 0
B10: Project Name | D10: =Wizard!E29 -> - | F10: -
B11: Date | D11: =Wizard!E31 -> -
B12: Ordered by
B13: Input/Output
B14: Total Inputs available | D14: =(D30*8) + I9 -> 0 | F14: =Wizard!H10 -> 20 | H14: 0 | J14: =IF(D14>H14,1,0) -> 0 | K14: =IF(F14>D14,1,0) -> 1
B15: Total Outputs available | D15: =(D31*8) +(D30*2)+J9 -> 0 | F15: =Wizard!H12 -> 0 | H15: 0 | J15: =IF(D15>H15,1,0) -> 0 | K15: =IF(F15>D15,1,0) -> 0
B16: Total detectors (excluding doors) | D16: ='Power calculation'!I72+'Power calculation'!I73+'Power calculation'!I74+'Power calculation'!I75+'Power calculation'!I77+'Power calculation'!I78+'Power calculation'!I79+'Power calculation'!I80+'Power calculation'!I90+'Power calculation'!I89 + SUM('Power calculation'!I134:I149)+'Power calculation'!I151+'Power calculation'!I152-D36 -> 0 | J16: 0
B17: Total PIR & Dual | D17: =SUM('Power calculation'!I72:I90) -> 0 | J17: 0
B18: Users | D18: - | F18: =Wizard!H18 -> 40 | H18: 0 | J18: =IF(F18>H18,1,0) -> 1 | K18: =IF(F18>H18,1,0) -> 1
B19: Cards | D19: =('Power calculation'!I110*10) +'Power calculation'!I111+('Power calculation'!I112 *10)+'Power calculation'!I113 -> 0 | F19: =Wizard!H20 -> 0 | J19: =IF(F19>H19,1,0) -> 0 | K19: =IF(F19>H19,1,0) -> 0
B20: Areas | F20: =Wizard!H22 -> 1 | H20: 0 | J20: =IF(F20>H20,1,0) -> 1 | K20: =IF(F20>H20,1,0) -> 1
J21: 0 | K21: =IF(F21>D21,1,0) -> 0
B22: Verification devices | J22: 0 | K22: 0
B23: Total audio expanders | D23: ='Power calculation'!I42+'Power calculation'!I43+'Power calculation'!I44+'Power calculation'!I45+'Power calculation'!I46+'Power calculation'!I47+'Power calculation'!I48 -> 0 | J23: 0 | K23: 0
J24: 0 | K24: 0
B25: Keypads | J25: 0 | K25: 0
B26: Total Keypads | D26: =SUM('Power calculation'!I30:I35) -> 0 | F26: =Wizard!H14 -> 1 | H26: 0 | J26: 0 | K26: =IF(F26>H26,1,0) -> 1
J27: 0 | K27: 0
B28: Expanders | J28: 0 | K28: 0
B29: Total Expanders | D29: =D30+D31+D23+'Power calculation'!I41+Summary!I41+Summary!D34+Summary!D26 -> 0 | H29: 0 | J29: 0 | K29: =IF(D29>H29,1,0) -> 0
B30: Total Input expanders | D30: =('Power calculation'!I37+'Power calculation'!I50+'Power calculation'!I51+'Power calculation'!I52+'Power calculation'!I53) -> 0 | H30: 0 | J30: 0 | K30: =IF(D30>H30,1,0) -> 0
B31: Total output expanders | D31: ='Power calculation'!I38 -> 0 | H31: =H30 -> 0 | J31: =IF(D31>H31,1,0) -> 0
J32: 0 | K32: 0
B33: Doors | J33: 0 | K33: 0
B34: Total Door expanders | D34: ='Power calculation'!I54+'Power calculation'!I55+'Power calculation'!I39 -> 0 | F34: =Wizard!H16 -> 0 | H34: 0 | J34: 0 | K34: 0
B35: Total readers | D35: =SUM('Power calculation'!I92:I106) -> 0 | F35: 0 | J35: 0 | K35: 0
B36: Total Door contacts | D36: =F36 -> 0 | F36: =Wizard!P23+Wizard!P24 -> 0 | J36: 0 | K36: 0
B37: Batteries | J37: 0 | K37: 0
B38: Total 7Ah | D38: ='Power calculation'!I9+'Power calculation'!I10+'Power calculation'!I11+'Power calculation'!I12+'Power calculation'!I50+'Power calculation'!I54 -> 0 | F38: 0 | J38: 0 | K38: 0
B39: Total 17Ah | D39: ='Power calculation'!I13+'Power calculation'!I14+'Power calculation'!I51+'Power calculation'!I55 -> 0 | F39: 0 | J39: 0 | K39: 0
B40: Total 26Ah | D40: ='Power calculation'!I15+('Power calculation'!I16*2)+'Power calculation'!I17+('Power calculation'!I18*2)+'Power calculation'!I52+('Power calculation'!I53*2) -> 0 | F40: 0 | J40: 0 | K40: 0
K41: 0

Sheet Release notes (hidden)
A1: Release notes 2014-12-14 | B1: 2017-01-11
A2: Power supply values has been changed
B3: SPC5x5x | C3: 2600 | D3: 2200
B4: SPC6x5x | C4: 2600 | D4: 2200
A5: SiWay devices added, removed
B6: SPCW114 | C6: new
B7: SPCW111 | C7: remove
A8: V.1.5
A9: SPC devices
B10: added redcare modem
A14: V1.6
A15: 2015-05-13
B17: SPCW114 | C17: addded
B18: SPCK5xx series | C18: added
A20: V1.7
A21: 2016-02-26
B22: ROLP-LX-x | C22: added
B23: SPC5230 name changed to SPC5320
B24: SPC5320 battery power changed from 17Ah to 7Ah
A26: V1.8
B27: Rebranded to Vanderbilt

Sheet Formula (hidden)
A2: Formulars | K2: Country approvals
A4: Min. required battery rest capacity in % | K4: UK | L4: PD6662 (EN50131 Grade 2 based) | M4: PD6662 (EN50131 Grade 3 based) | N4: unrestricted
A5: `=100% - "customer value on page 1" | K5: Ireland | L5: EN50131 Grade 2 | M5: EN50131 Grade 3 | N5: unrestricted
A6: =100-Wizard!E36 -> 99.99 | K6: E.U. | L6: EN50131 Grade 2 | M6: EN50131 Grade 3 | N6: unrestricted
K7: Sweden | L7: SSF 1014:3 Larmclass 1 | M7: SSF 1014:3 Larmclass 2 | N7: unrestricted
K8: Schweiz | L8: SES EN-CH-Grad 2 | M8: SES EN-CH-Grad 3 | N8: unbeschränkt
K9: Deutschland | L9: VdS Klasse A | M9: VdS Klasse C | N9: unbeschränkt
A10: Required accu total capacity in Ah (without min. battery capacity) | K10: Österreich | L10: VSÖ Privat | M10: VSÖ Gewerbe | N10: VSÖ Werteschutz | O10: unbeschränkt
A11: `= required standbytime x "idle current" + "add. Alarm current" x "max. current"/1000 | K11: Belgium | L11: TO-14 (EN50131 Grade 2 based) | M11: TO-14 (EN50131 Grade 3 based) | N11: unrestricted
K12: France | L12: NF&A2P - Grade 2 | M12: NF&A2P - Grade 3 | N12: unrestricted
A13: =('Power calculation'!E164*('Power calculation'!J163)+A21*('Power calculation'!K163))/1000 -> 0 | K13: Spain | L13: EN50131 Grade 2 | M13: EN50131 Grade 3 | N13: unrestricted
K14: Italy
A15: Required accu total capacity in Ah (min. battery capacity included)
A16: `= ((required standbytime x "idle current" + "add. alarming current" x "max. current"/1000)/(100-Wizard!E36)/100))
A18: =((('Power calculation'!E164*('Power calculation'!J163)+A21*('Power calculation'!K163))/1000)/((100-Wizard!E36)/100)) -> 0
A20: Required additional alarming current related to security regulations
A21: =Wizard!E39 -> 0
A25: Available backup time in h related to the selected panel and ext. PUSs ( + additional alarm current)
A26: `= ((avail. Backup battery*1000)*(100-Wizard!E36)/100) / (idle current + add. Alarming current)
A28: =(('Power calculation'!D165*1000)*(100-Wizard!E36)/100) / ('Power calculation'!J163+A21) -> 
A30: Available backup battery power in Ah related to the selected panel and ext. PSUs:
A32: =SUM('Power calculation'!N9:'Power calculation'!N18)+(SUM('Power calculation'!N50:'Power calculation'!N55)) -> 0
